fUSD/lending_fUSD_20260427
["ID","MTS","AMOUNT","RATE_DAILY","PERIOD"]
[421196997,1777230686793,-1471.49,0.00039726,15]
[421196998,1777230686803,-790.34,0.00039726,15]
[421196999,1777230686812,-1919.59,0.00039726,15]
[421197000,1777230686824,-500.0,0.00039726,15]
[421197001,1777230686835,-1831.1,0.00039726,15]
[421197002,1777230686846,-500.0,0.00039726,15]
[421197003,1777230686855,-500.0,0.00039726,15]
[421197004,1777230686864,-500.0,0.00039726,15]
[421197005,1777230686873,-831.8,0.00039726,15]
[421197006,1777230686883,-500.0,0.00039726,15]
[421197007,1777230686894,-577.56,0.00039726,15]
[421197008,1777230686905,-500.0,0.00039726,15]
[421197009,1777230686914,-1054.82,0.00039726,15]
[421197010,1777230686924,-1794.7,0.00039726,15]
[421197011,1777230686934,-500.0,0.00039726,15]
[421197012,1777230686945,-500.0,0.00039726,15]
[421197013,1777230686955,-500.0,0.00039726,15]
[421197014,1777230686964,-500.0,0.00039726,15]
[421197015,1777230686973,-500.0,0.00039726,15]
[421197016,1777230686983,-500.0,0.00039726,15]
[421197017,1777230686992,-1628.58,0.00039726,15]
[421197018,1777230687001,-500.0,0.00039726,15]
[421197019,1777230687011,-500.0,0.00039726,15]
[421197020,1777230687020,-500.0,0.00039726,15]
[421197021,1777230687029,-793.17,0.00039726,15]
[421197022,1777230687039,-500.0,0.00039726,15]
[421197023,1777230687048,-500.0,0.00039726,15]
[421197024,1777230687058,-500.0,0.00039726,15]
[421197025,1777230687067,-2337.63,0.00039726,15]
[421197026,1777230687077,-1346.97,0.00039726,15]
[421197027,1777230687086,-500.0,0.00039726,15]
[421197028,1777230687097,-1331.18,0.00039726,15]
[421197029,1777230687106,-500.0,0.00039726,15]
[421197030,1777230687117,-500.0,0.00039726,15]
[421197031,1777230687128,-500.0,0.00039726,15]
[421197032,1777230687139,-2102.69,0.00039726,15]
[421197033,1777230687148,-579.9,0.00039726,15]
[421197034,1777230687158,-783.32,0.00039726,15]
[421197035,1777230687168,-4166.68,0.00039726,2]
[421197036,1777230687178,-566.87,0.00039726,15]
[421197037,1777230687187,-500.0,0.00039726,15]
[421197038,1777230687197,-500.0,0.00039726,15]
[421197039,1777230687207,-1884.87,0.00039726,15]
[421197040,1777230687216,-500.0,0.00039726,15]
[421197041,1777230687226,-500.0,0.00039726,15]
[421197042,1777230687235,-1199.52,0.00039726,15]
[421197043,1777230687245,-500.0,0.00039726,15]
[421197044,1777230687254,-808.9,0.00039726,15]
[421197045,1777230687264,-500.0,0.00039726,15]
[421197046,1777230687274,-500.0,0.00039726,15]
[421197047,1777230687284,-203.96931815,0.00039726,15]
[421197048,1777230687293,-12545.47,0.00039726,15]
[421197049,1777230687303,-2092.53,0.00039726,15]
[421197050,1777230687312,-1346.26,0.00039726,15]
[421197051,1777230687323,-500.0,0.00039726,15]
[421197052,1777230687335,-500.0,0.00039726,15]
[421197053,1777230687347,-988.63,0.00039726,15]
[421197054,1777230687357,-791.54,0.00039726,15]
[421197055,1777230687366,-1460.02,0.00039726,15]
[421197056,1777230687376,-500.0,0.00039726,15]
[421197057,1777230687385,-500.0,0.00039726,15]
[421197058,1777230687398,-2396.63,0.00039726,15]
[421197059,1777230687407,-16627.45,0.00039726,11]
[421197060,1777230687418,-1750.67,0.00039726,15]
[421197061,1777230687427,-704.82,0.00039726,15]
[421197062,1777230687437,-18480.37,0.00039726,15]
[421197063,1777230687447,-838.62,0.00039726,15]
[421197064,1777230687456,-643.71,0.00039726,15]
[421197065,1777230687466,-4214.41,0.00039726,15]
[421197066,1777230687475,-1043.57,0.00039726,15]
[421197067,1777230687484,-500.0,0.00039726,15]
[421197068,1777230687494,-1128.82,0.00039726,15]
[421197069,1777230687503,-500.0,0.00039726,15]
[421197070,1777230687513,-500.0,0.00039726,15]
[421197071,1777230687522,-500.0,0.00039726,15]
[421197072,1777230687531,-1350.11,0.00039726,15]
[421197073,1777230687541,-1122.83,0.00039726,15]
[421197074,1777230687550,-826.33,0.00039726,15]
[421197075,1777230687559,-500.0,0.00039726,15]
[421197076,1777230687569,-2819.67,0.00039726,15]
[421197077,1777230687579,-500.0,0.00039726,15]
[421197078,1777230687589,-500.0,0.00039726,15]
[421197079,1777230687598,-936.61,0.00039726,15]
[421197080,1777230687609,-182.32422562,0.00039726,15]
[421197081,1777230687619,-2084.4,0.00039726,15]
[421197082,1777230687631,-500.0,0.00039726,15]
[421197083,1777230687640,-500.0,0.00039726,15]
[421197084,1777230687651,-500.0,0.00039726,15]
[421197085,1777230687661,-500.0,0.00039726,15]
[421197086,1777230687671,-500.0,0.00039726,15]
[421197087,1777230687681,-500.0,0.00039726,15]
[421197088,1777230687691,-1259.32,0.00039726,15]
[421197089,1777230687700,-620.77,0.00039726,15]
[421197090,1777230687710,-509.21,0.00039726,15]
[421197091,1777230687721,-2495.88,0.00039726,15]
[421197092,1777230687732,-800.28,0.00039726,15]
[421197093,1777230687743,-500.0,0.00039726,15]
[421197094,1777230687753,-500.0,0.00039726,15]
[421197095,1777230687764,-500.0,0.00039726,15]
[421197096,1777230687773,-4180.34,0.00039726,15]
[421197097,1777230687782,-1435.38,0.00039726,15]
[421197098,1777230687792,-500.0,0.00039726,15]
[421197099,1777230687802,-203.53293774,0.00039726,15]
[421197100,1777230687811,-500.0,0.00039726,15]
[421197101,1777230687821,-500.0,0.00039726,15]
[421197102,1777230687831,-500.0,0.00039726,15]
[421197103,1777230687840,-500.0,0.00039726,15]
[421197104,1777230687850,-500.0,0.00039726,15]
[421197105,1777230687860,-643.5178718,0.00039726,15]
[421197106,1777230687870,-1138.59,0.00039726,15]
[421197107,1777230687879,-3856.9,0.00039726,15]
[421197108,1777230687888,-1146.85,0.00039726,15]
[421197109,1777230687898,-500.0,0.00039726,15]
[421197110,1777230687907,-500.0,0.00039726,15]
[421197111,1777230687917,-500.0,0.00039726,15]
[421197112,1777230687926,-500.0,0.00039726,15]
[421197113,1777230687935,-500.0,0.00039726,15]
[421197114,1777230687945,-3436.63,0.00039726,15]
[421197115,1777230687955,-500.0,0.00039726,15]
[421197116,1777230687964,-500.0,0.00039726,15]
[421197117,1777230687974,-359.41844465,0.00039726,120]
[421197118,1777230687983,-516.29665649,0.00039726,30]
[421197119,1777230687992,-157.18181311,0.00039745,2]
[421197120,1777230688002,-186.4907,0.0003975,2]
[421197121,1777230688012,-178.70231603,0.00039753,120]
[421197122,1777230688021,-767.12175351,0.00039753,120]
[421197123,1777230688033,-202.55216919,0.00039753,120]
[421197124,1777230688043,-198.30715256,0.00039753,120]
[421197125,1777230688153,-208.31133897,0.00039753,120]
[421197126,1777230688163,-227.87252914,0.00039753,120]
[421197127,1777230688173,-178.1606473,0.00039778,120]
[421197128,1777230688182,-155.89,0.0003978,7]
[421197129,1777230688191,-319.06,0.00039783,30]
[421197130,1777230688201,-158.61502847,0.000398,120]
[421197131,1777230688210,-2000.0,0.000398,60]
[421197132,1777230688220,-1007.31033035,0.000398,120]
[421197133,1777230688229,-200.0,0.000398,14]
[421197134,1777230688239,-2631.4775578,0.00039862,7]
[421197135,1777230688248,-346.0,0.00039871,90]
[421197136,1777230688258,-2000.0,0.00039881,120]
[421197137,1777230688267,-250.0,0.0003989,90]
[421197138,1777230688277,-516.29665649,0.0003989,30]
[421197139,1777230688286,-21296.31925058,0.00039899,15]
[421197140,1777230688296,-50000.0,0.000399,120]
[421197141,1777230688305,-200.0,0.000399,14]
[421197142,1777230688314,-1103.7,0.00039919,30]
[421197143,1777230688324,-397.97,0.0003993,120]
[421197144,1777230688333,-2000.0,0.00039971,120]
[421197145,1777230688343,-610358.66775,0.0003999,30]
[421197146,1777230688353,-1563672.6898459,0.00039999,120]
[421197147,1777230688363,-14611.77393763,0.00039999,2]
[421197148,1777230688372,-50000.0,0.0004,36]
[421197149,1777230688381,-10000.0,0.0004,60]
[421197150,1777230688391,-28809.61497519,0.0004,30]
[421197151,1777230688400,-43325.9691731,0.0004,120]
[421197152,1777230688410,-3000.0,0.0004,30]
[421197153,1777230688419,-3000.0,0.0004,30]
[421197154,1777230688429,-3000.0,0.0004,30]
[421197155,1777230688439,-2989.82502271,0.0004,30]
[421197156,1777230688448,-3000.0,0.0004,30]
[421197157,1777230688458,-2034.05,0.0004,60]
[421197158,1777230688467,-672.0,0.0004,120]
[421197159,1777230688476,-102521.229251,0.0004,120]
[421197160,1777230688485,-1433.35061509,0.0004,30]
[421197161,1777230688494,-500.0,0.0004,15]
[421197162,1777230688504,-500.0,0.0004,15]
[421197163,1777230688513,-500.0,0.0004,15]
[421197164,1777230688522,-325.89322984,0.0004,15]
[421197165,1777230688532,-3107.9,0.0004,15]
[421197166,1777230688541,-500.0,0.0004,15]
[421197167,1777230688551,-541.43,0.0004,15]
[421197168,1777230688560,-311.24808943,0.0004,15]
[421197169,1777230688570,-709.65,0.0004,15]
[421197170,1777230688579,-500.0,0.0004,15]
[421197171,1777230688588,-811.08,0.0004,15]
[421197172,1777230688597,-846.38,0.0004,15]
[421197173,1777230688607,-500.0,0.0004,15]
[421197174,1777230688616,-568.42,0.0004,15]
[421197175,1777230688626,-2471.02,0.0004,15]
[421197176,1777230688636,-500.0,0.0004,7]
[421197177,1777230688645,-500.0,0.0004,15]
[421197178,1777230688655,-500.0,0.0004,15]
[421197179,1777230688664,-2520.49,0.0004,15]
[421197180,1777230688674,-508.44,0.0004,15]
[421197181,1777230688683,-565.14,0.0004,15]
[421197182,1777230688692,-503.41,0.0004,15]
[421197183,1777230688702,-8699.0,0.0004,120]
[421197184,1777230688711,-831.76,0.0004,15]
[421197185,1777230688720,-155.51247127,0.0004,82]
[421197186,1777230688730,-500.0,0.0004,15]
[421197187,1777230688739,-541.23,0.0004,15]
[421197188,1777230688748,-500.0,0.0004,15]
[421197189,1777230688757,-500.0,0.0004,15]
[421197190,1777230688766,-682.03,0.0004,15]
[421197191,1777230688775,-500.0,0.0004,15]
[421197192,1777230688785,-500.0,0.0004,15]
[421197193,1777230688794,-500.0,0.0004,15]
[421197194,1777230688804,-500.0,0.0004,15]
[421197195,1777230688813,-1671.16,0.0004,15]
[421197196,1777230688822,-1531.96,0.0004,15]
[421197197,1777230688832,-2225.71,0.0004,15]
[421197198,1777230688841,-934.68,0.0004,15]
[421197199,1777230688851,-500.0,0.0004,15]
[421197200,1777230688860,-500.0,0.0004,15]
[421197201,1777230688869,-212.04436237,0.0004,15]
[421197202,1777230688879,-500.0,0.0004,12]
[421197203,1777230688888,-500.0,0.0004,15]
[421197204,1777230688897,-1522.47,0.0004,15]
[421197205,1777230688906,-2473.24,0.0004,15]
[421197206,1777230688915,-894.3,0.0004,15]
[421197207,1777230688924,-1358.93,0.0004,15]
[421197208,1777230688933,-872.26,0.0004,15]
[421197209,1777230688942,-500.0,0.0004,15]
[421197210,1777230688951,-1642.91,0.0004,15]
[421197211,1777230688960,-500.0,0.0004,15]
[421197212,1777230688970,-1027.29,0.0004,15]
[421197213,1777230688978,-500.0,0.0004,15]
[421197214,1777230688987,-500.0,0.0004,15]
[421197215,1777230688996,-1006.0,0.0004,15]
[421197216,1777230689006,-500.0,0.0004,15]
[421197217,1777230689015,-801.31,0.0004,15]
[421197218,1777230689025,-500.0,0.0004,15]
[421197219,1777230689034,-500.0,0.0004,15]
[421197220,1777230689043,-485.29339662,0.0004,15]
[421197221,1777230689052,-1100.16,0.0004,15]
[421197222,1777230689062,-577.1,0.0004,15]
[421197223,1777230689070,-1288.23,0.0004,15]
[421197224,1777230689080,-500.0,0.0004,15]
[421197225,1777230689089,-500.0,0.0004,15]
[421197226,1777230689098,-552.71,0.0004,15]
[421197227,1777230689108,-500.0,0.0004,15]
[421197228,1777230689117,-500.0,0.0004,15]
[421197229,1777230689126,-1677.38,0.0004,15]
[421197230,1777230689135,-1627.8,0.0004,15]
[421197231,1777230689144,-781.79,0.0004,15]
[421197232,1777230689154,-1068.12,0.0004,15]
[421197233,1777230689163,-500.0,0.0004,15]
[421197234,1777230689172,-1323.09,0.0004,15]
[421197235,1777230689181,-1437.06,0.0004,15]
[421197236,1777230689190,-500.0,0.0004,15]
[421197237,1777230689199,-840.22,0.0004,15]
[421197238,1777230689208,-500.0,0.0004,15]
[421197239,1777230689218,-1473.32,0.0004,15]
[421197240,1777230689227,-500.0,0.0004,15]
[421197241,1777230689236,-583.15,0.0004,15]
[421197242,1777230689246,-1035.72,0.0004,15]
[421197243,1777230689255,-2116.59,0.0004,15]
[421197244,1777230689264,-500.0,0.0004,15]
[421197245,1777230689273,-500.0,0.0004,15]
[421197246,1777230689282,-500.0,0.0004,15]
[421197247,1777230689291,-500.0,0.0004,15]
[421197248,1777230689301,-600.87,0.0004,15]
[421197249,1777230689310,-500.0,0.0004,15]
[421197250,1777230689320,-500.0,0.0004,15]
[421197251,1777230689329,-500.0,0.0004,15]
[421197252,1777230689338,-621.43,0.0004,15]
[421197253,1777230689347,-1870.33,0.0004,15]
[421197254,1777230689357,-2364.44,0.0004,15]
[421197255,1777230689367,-1216.3,0.0004,15]
[421197256,1777230689376,-842.05,0.0004,15]
[421197257,1777230689386,-519.44,0.0004,15]
[421197258,1777230689395,-500.0,0.0004,15]
[421197259,1777230689404,-152.71611285,0.0004,15]
[421197260,1777230689413,-540.3,0.0004,15]
[421197261,1777230689422,-500.0,0.0004,15]
[421197262,1777230689432,-2232.09,0.0004,15]
[421197263,1777230689443,-500.0,0.0004,15]
[421197264,1777230689453,-1908.11,0.0004,15]
[421197265,1777230689462,-500.0,0.0004,15]
[421197266,1777230689471,-527.87,0.0004,15]
[421197267,1777230689480,-500.0,0.0004,15]
[421197268,1777230689489,-500.0,0.0004,15]
[421197269,1777230689499,-500.0,0.0004,15]
[421197270,1777230689508,-2846.84,0.0004,15]
[421197271,1777230689517,-500.0,0.0004,15]
[421197272,1777230689527,-670.37,0.0004,15]
[421197273,1777230689535,-753.07,0.0004,15]
[421197274,1777230689545,-1838.66,0.0004,15]
[421197275,1777230689554,-500.0,0.0004,15]
[421197276,1777230689563,-629.13,0.0004,15]
[421197277,1777230689572,-1079.95,0.0004,15]
[421197278,1777230689581,-500.0,0.0004,15]
[421197279,1777230689590,-500.0,0.0004,15]
[421197280,1777230689599,-738.6,0.0004,15]
[421197281,1777230689610,-833.92,0.0004,15]
[421197282,1777230689619,-500.0,0.0004,15]
[421197283,1777230689628,-1225.64,0.0004,15]
[421197284,1777230689637,-550.1,0.0004,15]
[421197285,1777230689646,-1876.72,0.0004,15]
[421197286,1777230689655,-500.0,0.0004,15]
[421197287,1777230689664,-1061.98,0.0004,15]
[421197288,1777230689673,-500.0,0.0004,15]
[421197289,1777230689682,-500.0,0.0004,15]
[421197290,1777230689693,-500.0,0.0004,15]
[421197291,1777230689703,-1723.48,0.0004,15]
[421197292,1777230689713,-500.0,0.0004,15]
[421197293,1777230689723,-689.09,0.0004,15]
[421197294,1777230689732,-500.0,0.0004,15]
[421197295,1777230689742,-500.0,0.0004,15]
[421197296,1777230689753,-500.0,0.0004,15]
[421197297,1777230689763,-648.18,0.0004,15]
[421197298,1777230689772,-1128.22,0.0004,15]
[421197299,1777230689782,-972.03,0.0004,15]
[421197300,1777230689795,-500.0,0.0004,15]
[421197301,1777230689804,-1122.6,0.0004,15]
[421197302,1777230689815,-500.0,0.0004,15]
[421197303,1777230689826,-500.0,0.0004,15]
[421197304,1777230689835,-1543.14,0.0004,15]
[421197305,1777230689844,-500.0,0.0004,15]
[421197306,1777230689853,-500.0,0.0004,15]
[421197307,1777230689862,-500.0,0.0004,15]
[421197308,1777230689871,-500.0,0.0004,15]
[421197309,1777230689880,-1673.98,0.0004,15]
[421197310,1777230689889,-500.0,0.0004,15]
[421197311,1777230689898,-1019.21,0.0004,15]
[421197312,1777230689907,-500.0,0.0004,15]
[421197313,1777230689916,-693.7,0.0004,15]
[421197314,1777230689925,-616.37,0.0004,15]
[421197315,1777230689934,-500.0,0.0004,15]
[421197316,1777230689943,-500.0,0.0004,15]
[421197317,1777230689952,-500.0,0.0004,15]
[421197318,1777230689961,-1077.19,0.0004,15]
[421197319,1777230689970,-500.0,0.0004,15]
[421197320,1777230689979,-1201.83,0.0004,15]
[421197321,1777230689989,-500.0,0.0004,15]
[421197322,1777230689999,-500.0,0.0004,15]
[421197323,1777230690008,-500.0,0.0004,15]
[421197324,1777230690017,-882.98,0.0004,5]
[421197325,1777230690026,-500.0,0.0004,15]
[421197326,1777230690036,-571.13,0.0004,15]
[421197327,1777230690045,-532.65,0.0004,15]
[421197328,1777230690054,-532.67,0.0004,15]
[421197329,1777230690063,-552.39,0.0004,15]
[421197330,1777230690073,-1834.85,0.0004,15]
[421197331,1777230690083,-892.83,0.0004,15]
[421197332,1777230690092,-1534.49,0.0004,15]
[421197333,1777230690101,-972.12,0.0004,15]
[421197334,1777230690110,-500.0,0.0004,15]
[421197335,1777230690120,-551.58,0.0004,15]
[421197336,1777230690129,-1750.29,0.0004,15]
[421197337,1777230690138,-937.9,0.0004,7]
[421197338,1777230690147,-500.0,0.0004,15]
[421197339,1777230690156,-500.0,0.0004,15]
[421197340,1777230690166,-993.58,0.0004,15]
[421197341,1777230690175,-500.0,0.0004,15]
[421197342,1777230690185,-530.46,0.0004,15]
[421197343,1777230690194,-520.62,0.0004,15]
[421197344,1777230690203,-1995.81,0.0004,15]
[421197345,1777230690212,-525.77,0.0004,15]
[421197346,1777230690221,-299.4503076,0.0004,15]
[421197347,1777230690230,-1952.43,0.0004,15]
[421197348,1777230690239,-518.57,0.0004,15]
[421197349,1777230690248,-500.0,0.0004,15]
[421197350,1777230690258,-580.81,0.0004,15]
[421197351,1777230690267,-500.0,0.0004,15]
[421197352,1777230690276,-500.0,0.0004,15]
[421197353,1777230690285,-992.01,0.0004,15]
[421197354,1777230690294,-2029.26,0.0004,15]
[421197355,1777230690304,-500.0,0.0004,15]
[421197356,1777230690312,-936.75,0.0004,15]
[421197357,1777230690321,-708.16,0.0004,15]
[421197358,1777230690330,-1285.52,0.0004,15]
[421197359,1777230690339,-1694.22,0.0004,15]
[421197360,1777230690349,-500.0,0.0004,15]
[421197361,1777230690359,-505.88,0.0004,15]
[421197362,1777230690368,-1154.35,0.0004,15]
[421197363,1777230690377,-595.92,0.0004,15]
[421197364,1777230690389,-500.0,0.0004,15]
[421197365,1777230690399,-500.0,0.0004,15]
[421197366,1777230690408,-1069.75,0.0004,15]
[421197367,1777230690418,-754.46,0.0004,15]
[421197368,1777230690428,-667.16,0.0004,15]
[421197369,1777230690437,-945.6,0.0004,15]
[421197370,1777230690446,-500.0,0.0004,15]
[421197371,1777230690456,-696.96,0.0004,15]
[421197372,1777230690465,-676.72,0.0004,15]
[421197373,1777230690474,-821.49,0.0004,15]
[421197374,1777230690484,-951.98,0.0004,15]
[421197375,1777230690493,-991.13,0.0004,15]
[421197376,1777230690503,-562.6,0.0004,15]
[421197377,1777230690513,-534.38,0.0004,15]
[421197378,1777230690522,-880.94,0.0004,15]
[421197379,1777230690531,-500.0,0.0004,15]
[421197380,1777230690540,-423.59792918,0.0004,15]
[421197381,1777230691788,-151.0,0.00038702,30]
[421197382,1777230691797,-136.23207082,0.0004,15]
[421197383,1777230691807,-64.41896708,0.0004,15]
[421197384,1777230691824,-435.58103292,0.0004,15]
[421197385,1777230691833,-500.0,0.0004,15]
[421197386,1777230691846,-1292.56475998,0.0004,15]
[421197387,1777230692089,-706.37465925,0.00022633,2]
[421197388,1777230692109,-827.75733248,0.00022633,2]
[421197389,1777230704125,-520.45652898,0.00022633,2]
[421197390,1777230704137,-3978.41147929,0.00022633,2]
[421197391,1777230704147,-6033.0,0.00025633,2]
[421197392,1777230704156,-6033.0,0.00028633,2]
[421197393,1777230704166,-6033.0,0.00031633,2]
[421197394,1777230704175,-6033.0,0.00034633,2]
[421197395,1777230704184,-6033.0,0.00037633,2]
[421197396,1777230704194,-151.0,0.0003863,30]
[421197397,1777230704203,-151.0,0.00038702,30]
[421197398,1777230704212,-300.849599,0.00038702,30]
[421197399,1777230704222,-151.0,0.00038904,30]
[421197400,1777230704232,-151.0,0.00039,30]
[421197401,1777230704242,-630.26524002,0.0004,15]
[421197402,1777230704252,-1246.97,0.0004,15]
[421197403,1777230704263,-500.0,0.0004,15]
[421197404,1777230704273,-500.0,0.0004,15]
[421197405,1777230704283,-1103.63,0.0004,15]
[421197406,1777230704293,-500.0,0.0004,15]
[421197407,1777230704303,-1473.44,0.0004,15]
[421197408,1777230704313,-1007.38,0.0004,15]
[421197409,1777230704323,-500.0,0.0004,15]
[421197410,1777230704332,-1056.97,0.0004,15]
[421197411,1777230704342,-1365.11,0.0004,15]
[421197412,1777230704353,-500.0,0.0004,15]
[421197413,1777230704363,-500.0,0.0004,15]
[421197414,1777230704373,-500.0,0.0004,15]
[421197415,1777230704382,-500.0,0.0004,15]
[421197416,1777230704391,-1442.35,0.0004,15]
[421197417,1777230704401,-500.0,0.0004,15]
[421197418,1777230704412,-630.59,0.0004,15]
[421197419,1777230704422,-1048.26,0.0004,15]
[421197420,1777230704432,-500.0,0.0004,15]
[421197421,1777230704442,-263.14,0.0004,15]
[421197422,1777230704452,-500.0,0.0004,15]
[421197423,1777230704462,-626.08,0.0004,15]
[421197424,1777230704471,-1716.3,0.0004,15]
[421197425,1777230704480,-500.0,0.0004,15]
[421197426,1777230704490,-436.98191066,0.0004,15]
[421197427,1777230704499,-3539.51,0.0004,15]
[421197428,1777230704508,-500.0,0.0004,2]
[421197429,1777230704518,-500.0,0.0004,15]
[421197430,1777230704529,-787.69,0.0004,15]
[421197431,1777230704539,-1238.2,0.0004,15]
[421197432,1777230704550,-500.0,0.0004,15]
[421197433,1777230704560,-1086.18,0.0004,15]
[421197434,1777230704569,-500.0,0.0004,15]
[421197435,1777230704579,-699.93,0.0004,15]
[421197436,1777230704588,-500.0,0.0004,15]
[421197437,1777230704598,-500.0,0.0004,15]
[421197438,1777230704607,-559.73,0.0004,15]
[421197439,1777230704618,-867.24,0.0004,15]
[421197440,1777230704628,-870.64,0.0004,15]
[421197441,1777230704638,-685.35,0.0004,15]
[421197442,1777230704647,-500.0,0.0004,15]
[421197443,1777230704656,-1036.89,0.0004,15]
[421197444,1777230704667,-2070.79,0.0004,15]
[421197445,1777230704676,-500.0,0.0004,15]
[421197446,1777230704686,-500.0,0.0004,15]
[421197447,1777230704696,-500.0,0.0004,15]
[421197448,1777230704706,-3334.91,0.0004,15]
[421197449,1777230704716,-5476.34,0.0004,15]
[421197450,1777230704727,-500.0,0.0004,15]
[421197451,1777230704738,-500.0,0.0004,15]
[421197452,1777230704748,-1322.23,0.0004,15]
[421197453,1777230704758,-1216.19,0.0004,14]
[421197454,1777230704767,-500.0,0.0004,15]
[421197455,1777230704777,-500.0,0.0004,15]
[421197456,1777230704787,-163.7811959,0.0004,15]
[421197457,1777230704797,-1389.25,0.0004,15]
[421197458,1777230704806,-1720.57,0.0004,15]
[421197459,1777230704816,-500.0,0.0004,15]
[421197460,1777230704825,-749.96,0.0004,15]
[421197461,1777230704834,-1262.11,0.0004,15]
[421197462,1777230704843,-948.11,0.0004,15]
[421197463,1777230704853,-2892.54,0.0004,15]
[421197464,1777230704863,-348.50430716,0.0004,15]
[421197465,1777230705200,-538.16,0.0004,15]
[421197466,1777230705281,-500.0,0.0004,15]
[421197467,1777230705293,-743.03,0.0004,15]
[421197468,1777230705304,-500.0,0.0004,15]
[421197469,1777230705314,-500.0,0.0004,15]
[421197470,1777230705324,-1861.14,0.0004,15]
[421197471,1777230705334,-500.0,0.0004,15]
[421197472,1777230705345,-500.0,0.0004,15]
[421197473,1777230705356,-500.0,0.0004,15]
[421197474,1777230705366,-853.77,0.0004,15]
[421197475,1777230705375,-1169.93,0.0004,15]
[421197476,1777230705385,-944.13,0.0004,15]
[421197477,1777230705394,-500.0,0.0004,15]
[421197478,1777230705403,-1245.88,0.0004,15]
[421197479,1777230705413,-500.0,0.0004,15]
[421197480,1777230705423,-500.0,0.0004,15]
[421197481,1777230705433,-500.0,0.0004,15]
[421197482,1777230705443,-1133.82,0.0004,15]
[421197483,1777230705458,-4842.51,0.0004,15]
[421197484,1777230705467,-500.0,0.0004,15]
[421197485,1777230705476,-500.0,0.0004,15]
[421197486,1777230705486,-500.0,0.0004,15]
[421197487,1777230705496,-500.0,0.0004,15]
[421197488,1777230705507,-722.28,0.0004,15]
[421197489,1777230705517,-1049.32,0.0004,15]
[421197490,1777230705527,-1471.49,0.0004,15]
[421197491,1777230705536,-790.34,0.0004,15]
[421197492,1777230705547,-1919.59,0.0004,15]
[421197493,1777230705557,-500.0,0.0004,15]
[421197494,1777230705566,-1831.1,0.0004,15]
[421197495,1777230705577,-500.0,0.0004,15]
[421197496,1777230705588,-500.0,0.0004,15]